fUST/lending_fUST_20241230
["ID","MTS","AMOUNT","RATE_DAILY","PERIOD"]
[347207056,1735573843695,-534.32876447,0.00010958,2]
[347207057,1735573843704,-500.0,0.00010958,2]
[347207058,1735573843713,-500.0,0.00010958,2]
[347207059,1735573843788,-500.0,0.00010958,2]
[347207060,1735573843798,-500.0,0.00010958,2]
[347207061,1735573843807,-507.13680817,0.00010958,2]
[347207062,1735573843816,-500.0,0.00010958,2]
[347207063,1735573843825,-500.0,0.00010958,2]
[347207064,1735573843834,-500.0,0.00010958,2]
[347207065,1735573843845,-500.0,0.00010958,2]
[347207066,1735573843854,-500.0,0.00010958,2]
[347207067,1735573843863,-500.0,0.00010958,2]
[347207068,1735573843873,-500.0,0.00010958,2]
[347207069,1735573843882,-500.0,0.00010958,2]
[347207070,1735573843892,-500.0,0.00010958,2]
[347207071,1735573843901,-313.77508014,0.00010973,2]
[347207072,1735573843910,-1397.39,0.00011231,2]
[347207073,1735573843919,-1397.39,0.00011231,2]
[347207074,1735573843929,-1397.39,0.00011231,2]
[347207075,1735573843939,-1397.39,0.00011231,2]
[347207076,1735573843949,-500.0,0.00011231,2]
[347207077,1735573843958,-500.0,0.00011232,2]
[347207078,1735573843967,-503.02406814,0.00011232,2]
[347207079,1735573843976,-410.88881014,0.00011232,2]
[347207080,1735573843986,-500.0,0.00011232,2]
[347207081,1735573843996,-507.66824706,0.00011232,2]
[347207082,1735573844005,-500.0,0.00011232,2]
[347207083,1735573844015,-517.5591942,0.00011232,2]
[347207084,1735573844025,-500.0,0.00011232,2]
[347207085,1735573844034,-500.0,0.00011232,2]
[347207086,1735573844043,-448.14842149,0.00011232,2]
[347207087,1735573844053,-500.0,0.00011232,2]
[347207088,1735573844062,-500.0,0.00011232,2]
[347207089,1735573844072,-638.93009526,0.00011232,2]
[347207090,1735573844081,-500.0,0.00011232,2]
[347207091,1735573844091,-500.0,0.00011232,2]
[347207092,1735573844102,-500.0,0.00011232,2]
[347207093,1735573844112,-500.0,0.00011232,2]
[347207094,1735573844121,-500.75235751,0.00011232,2]
[347207095,1735573844131,-500.0,0.00011232,2]
[347207096,1735573844140,-500.0,0.00011232,2]
[347207097,1735573844149,-500.0,0.00011232,2]
[347207098,1735573844159,-500.0,0.00011232,2]
[347207099,1735573844169,-500.0,0.00011232,2]
[347207100,1735573844178,-500.0,0.00011232,2]
[347207101,1735573844187,-500.0,0.00011232,2]
[347207102,1735573844197,-500.0,0.00011232,2]
[347207103,1735573844206,-500.0922711,0.00011232,2]
[347207104,1735573844216,-500.0,0.00011232,2]
[347207105,1735573844225,-500.0,0.00011232,2]
[347207106,1735573844234,-500.0,0.00011232,2]
[347207107,1735573844244,-500.0,0.00011232,2]
[347207108,1735573844253,-500.0,0.00011232,2]
[347207109,1735573844263,-500.0,0.00011232,2]
[347207110,1735573844272,-500.0,0.00011232,2]
[347207111,1735573844281,-427.38573075,0.00011232,2]
[347207112,1735573844291,-424.4,0.00011232,2]
[347207113,1735573844300,-500.0,0.00011232,2]
[347207114,1735573844309,-592.92743583,0.00011232,2]
[347207115,1735573844318,-500.0,0.00011232,2]
[347207116,1735573844327,-500.0,0.00011232,2]
[347207117,1735573844337,-500.0,0.00011232,2]
[347207118,1735573844347,-500.0,0.00011232,2]
[347207119,1735573844356,-500.0,0.00011232,2]
[347207120,1735573844366,-500.0,0.00011232,2]
[347207121,1735573844376,-500.0,0.00011232,2]
[347207122,1735573844385,-500.0,0.00011232,2]
[347207123,1735573844395,-500.0,0.00011232,2]
[347207124,1735573844404,-500.0,0.00011232,2]
[347207125,1735573844413,-500.86935964,0.00011232,2]
[347207126,1735573844422,-500.0,0.00011232,2]
[347207127,1735573844431,-500.0,0.00011232,2]
[347207128,1735573844440,-507.10366578,0.00011232,2]
[347207129,1735573844449,-500.0,0.00011232,2]
[347207130,1735573844459,-500.0,0.00011232,2]
[347207131,1735573844468,-500.0,0.00011232,2]
[347207132,1735573844479,-501.47620404,0.00011232,2]
[347207133,1735573844489,-500.0,0.00011232,2]
[347207134,1735573844498,-500.0,0.00011232,2]
[347207135,1735573844507,-500.0,0.00011232,2]
[347207136,1735573844518,-500.0,0.00011232,2]
[347207137,1735573844528,-500.0,0.00011232,2]
[347207138,1735573844537,-500.0,0.00011232,2]
[347207139,1735573844546,-500.0,0.00011232,2]
[347207140,1735573844558,-247.77,0.00011232,2]
[347207141,1735573844567,-500.0,0.00011232,2]
[347207142,1735573844576,-619.04755111,0.00011232,2]
[347207143,1735573844585,-500.0,0.00011232,2]
[347207144,1735573844595,-500.0,0.00011232,2]
[347207145,1735573844606,-500.0,0.00011232,2]
[347207146,1735573844616,-500.0,0.00011232,2]
[347207147,1735573844625,-501.63335695,0.00011232,2]
[347207148,1735573844634,-500.0,0.00011232,2]
[347207149,1735573844643,-535.25535047,0.00011232,2]
[347207150,1735573844652,-500.0,0.00011232,2]
[347207151,1735573844661,-500.0,0.00011232,2]
[347207152,1735573844670,-500.0,0.00011232,2]
[347207153,1735573844679,-500.0,0.00011232,2]
[347207154,1735573844688,-500.0,0.00011232,2]
[347207155,1735573844697,-500.0,0.00011232,2]
[347207156,1735573844707,-500.0,0.00011232,2]
[347207157,1735573844716,-501.11481118,0.00011232,2]
[347207158,1735573844725,-502.71564011,0.00011232,2]
[347207159,1735573844734,-501.12845301,0.00011232,2]
[347207160,1735573844743,-500.0,0.00011232,2]
[347207161,1735573844752,-500.0,0.00011232,2]
[347207162,1735573844761,-325.98,0.00011232,2]
[347207163,1735573844770,-500.0,0.00011232,2]
[347207164,1735573844779,-500.0,0.00011232,2]
[347207165,1735573844788,-501.72630372,0.00011232,2]
[347207166,1735573844798,-474.9061468,0.00011232,2]
[347207167,1735573844807,-500.0,0.00011232,2]
[347207168,1735573844816,-502.26321738,0.00011232,2]
[347207169,1735573844825,-503.81761922,0.00011232,2]
[347207170,1735573844834,-500.0,0.00011232,2]
[347207171,1735573844844,-500.0,0.00011232,2]
[347207172,1735573844853,-500.0,0.00011232,2]
[347207173,1735573844862,-512.10233924,0.00011232,2]
[347207174,1735573844871,-500.0,0.00011232,2]
[347207175,1735573844880,-501.44509434,0.00011232,2]
[347207176,1735573844890,-500.0,0.00011232,2]
[347207177,1735573844899,-500.0,0.00011232,2]
[347207178,1735573844908,-500.0,0.00011232,2]
[347207179,1735573844918,-509.98405392,0.00011232,2]
[347207180,1735573844927,-500.0,0.00011232,2]
[347207181,1735573844937,-503.81998036,0.00011232,2]
[347207182,1735573844946,-500.0,0.00011232,2]
[347207183,1735573844955,-500.0,0.00011232,2]
[347207184,1735573844964,-507.87866054,0.00011232,2]
[347207185,1735573844974,-500.0,0.00011232,2]
[347207186,1735573844983,-500.0,0.00011232,2]
[347207187,1735573844992,-505.77979966,0.00011232,2]
[347207188,1735573845002,-502.44979427,0.00011232,2]
[347207189,1735573845012,-500.0,0.00011232,2]
[347207190,1735573845021,-500.0,0.00011232,2]
[347207191,1735573845030,-500.0,0.00011232,2]
[347207192,1735573845040,-500.0,0.00011232,2]
[347207193,1735573845049,-502.51047285,0.00011232,2]
[347207194,1735573845059,-511.74190359,0.00011232,2]
[347207195,1735573845068,-500.0,0.00011232,2]
[347207196,1735573845078,-500.0,0.00011232,2]
[347207197,1735573845087,-509.56410633,0.00011232,2]
[347207198,1735573845099,-500.0,0.00011232,2]
[347207199,1735573845109,-500.0,0.00011232,2]
[347207200,1735573845120,-500.0,0.00011232,2]
[347207201,1735573845129,-500.0,0.00011232,2]
[347207202,1735573845139,-282.49108368,0.00011232,2]
[347207203,1735573845148,-500.0,0.00011232,2]
[347207204,1735573845158,-500.0,0.00011232,2]
[347207205,1735573845168,-500.0,0.00011232,2]
[347207206,1735573845177,-500.0,0.00011232,2]
[347207207,1735573845187,-500.0,0.00011232,2]
[347207208,1735573845197,-500.0,0.00011232,2]
[347207209,1735573845207,-500.0,0.00011232,2]
[347207210,1735573845217,-500.0,0.00011232,2]
[347207211,1735573845226,-500.0,0.00011232,2]
[347207212,1735573845235,-601.76169388,0.00011232,2]
[347207213,1735573845310,-500.0,0.00011232,2]
[347207214,1735573845321,-478.04794181,0.00011232,2]
[347207215,1735573845330,-503.76193013,0.00011232,2]
[347207216,1735573845339,-500.0,0.00011232,2]
[347207217,1735573845350,-500.0,0.00011232,2]
[347207218,1735573845359,-506.03974183,0.00011232,2]
[347207219,1735573845369,-500.0,0.00011232,2]
[347207220,1735573845378,-500.0,0.00011232,2]
[347207221,1735573845388,-471.74056471,0.00011232,2]
[347207222,1735573845397,-500.0,0.00011232,2]
[347207223,1735573845407,-500.0,0.00011232,2]
[347207224,1735573845416,-500.0,0.00011232,2]
[347207225,1735573845425,-500.0,0.00011232,2]
[347207226,1735573845435,-504.52412357,0.00011232,2]
[347207227,1735573845444,-500.0,0.00011232,2]
[347207228,1735573845454,-459.99083437,0.00011232,2]
[347207229,1735573845463,-214.27216354,0.00011232,2]
[347207230,1735573845472,-500.0,0.00011232,2]
[347207231,1735573845487,-500.0,0.00011232,2]
[347207232,1735573845496,-500.0,0.00011232,2]
[347207233,1735573845505,-503.58481341,0.00011232,2]
[347207234,1735573845515,-501.01092951,0.00011232,2]
[347207235,1735573845524,-500.0,0.00011232,2]
[347207236,1735573845535,-500.0,0.00011232,2]
[347207237,1735573845544,-500.0,0.00011232,2]
[347207238,1735573845555,-500.0,0.00011232,2]
[347207239,1735573845564,-500.0,0.00011232,2]
[347207240,1735573845573,-500.0,0.00011232,2]
[347207242,1735573845582,-500.0,0.00011232,2]
[347207243,1735573845591,-500.0,0.00011232,2]
[347207244,1735573845603,-500.0,0.00011232,2]
[347207245,1735573845612,-500.0,0.00011232,2]
[347207247,1735573845622,-1256.99,0.00011232,2]
[347207249,1735573845631,-605.96,0.00011232,2]
[347207251,1735573845640,-8816.16,0.00011232,2]
[347207252,1735573845649,-500.0,0.00011232,2]
[347207254,1735573845659,-500.0,0.00011232,2]
[347207256,1735573845669,-500.0,0.00011232,2]
[347207258,1735573845678,-500.96026109,0.00011232,2]
[347207260,1735573845687,-417.19601857,0.00011232,2]
[347207261,1735573845696,-500.0,0.00011232,2]
[347207262,1735573845706,-500.0,0.00011232,2]
[347207263,1735573845716,-500.0,0.00011232,2]
[347207264,1735573845726,-500.0,0.00011232,2]
[347207265,1735573845736,-500.0,0.00011232,2]
[347207266,1735573845746,-500.0,0.00011232,2]
[347207267,1735573845755,-500.0,0.00011232,2]
[347207268,1735573845764,-500.0,0.00011232,2]
[347207269,1735573845775,-500.0,0.00011232,2]
[347207270,1735573845785,-503.40394021,0.00011232,2]
[347207271,1735573845795,-500.0,0.00011232,2]
[347207272,1735573845805,-500.0,0.00011232,2]
[347207273,1735573845815,-500.0,0.00011232,2]
[347207274,1735573845826,-500.0,0.00011232,2]
[347207275,1735573845836,-500.0,0.00011232,2]
[347207276,1735573845850,-500.0,0.00011232,2]
[347207277,1735573845861,-500.0,0.00011232,2]
[347207278,1735573845871,-500.0,0.00011232,2]
[347207279,1735573845883,-502.4613571,0.00011232,2]
[347207280,1735573845894,-500.0,0.00011232,2]
[347207281,1735573845904,-575.43557147,0.00011232,2]
[347207283,1735573845919,-500.0,0.00011232,2]
[347207285,1735573845930,-500.0,0.00011232,2]
[347207287,1735573845940,-1260.38,0.00011232,2]
[347207289,1735573845951,-500.0,0.00011232,2]
[347207290,1735573845961,-357.85981952,0.00011232,2]
[347207291,1735573845972,-500.0,0.00011232,2]
[347207292,1735573845983,-500.0,0.00011232,2]
[347207293,1735573845993,-500.0,0.00011232,2]
[347207294,1735573846004,-500.0,0.00011232,2]
[347207295,1735573846016,-500.0,0.00011232,2]
[347207296,1735573846026,-500.0,0.00011232,2]
[347207297,1735573846037,-500.0,0.00011232,2]
[347207298,1735573846047,-500.0,0.00011232,2]
[347207299,1735573846057,-500.0,0.00011232,2]
[347207300,1735573846068,-500.0,0.00011232,2]
[347207301,1735573846078,-2882.64,0.00011232,2]
[347207302,1735573846089,-500.0,0.00011232,2]
[347207303,1735573846106,-500.0,0.00011232,2]
[347207304,1735573846116,-500.0,0.00011232,2]
[347207305,1735573846127,-500.0,0.00011232,2]
[347207306,1735573846139,-500.0,0.00011232,2]
[347207307,1735573846150,-506.68054398,0.00011232,2]
[347207308,1735573846161,-510.75,0.00011232,2]
[347207309,1735573846172,-500.0,0.00011232,2]
[347207310,1735573846182,-500.0,0.00011232,2]
[347207311,1735573846193,-500.0,0.00011232,2]
[347207312,1735573846204,-500.0,0.00011232,2]
[347207314,1735573846215,-500.0,0.00011232,2]
[347207315,1735573846226,-503.10665884,0.00011232,2]
[347207316,1735573846237,-500.0,0.00011232,2]
[347207317,1735573846248,-500.0,0.00011232,2]
[347207318,1735573846258,-500.0,0.00011232,2]
[347207320,1735573846269,-500.0,0.00011232,2]
[347207322,1735573846280,-500.0,0.00011232,2]
[347207324,1735573846291,-502.67664542,0.00011232,2]
[347207326,1735573846301,-500.0,0.00011232,2]
[347207327,1735573846311,-500.0,0.00011232,2]
[347207328,1735573846321,-501.99531615,0.00011232,2]
[347207329,1735573846331,-640.47,0.00011232,2]
[347207330,1735573846341,-500.0,0.00011232,2]
[347207331,1735573846357,-500.0,0.00011232,2]
[347207333,1735573846369,-508.1033877,0.00011232,2]
[347207335,1735573846380,-500.0,0.00011232,2]
[347207336,1735573846390,-500.0,0.00011232,2]
[347207337,1735573846401,-500.0,0.00011232,2]
[347207338,1735573846411,-500.0,0.00011232,2]
[347207339,1735573846422,-500.0,0.00011232,2]
[347207340,1735573846433,-500.0,0.00011232,2]
[347207341,1735573846443,-500.0,0.00011232,2]
[347207342,1735573846453,-737.05,0.00011232,2]
[347207343,1735573846463,-500.0,0.00011232,2]
[347207344,1735573846473,-500.0,0.00011232,2]
[347207345,1735573846487,-500.0,0.00011232,2]
[347207346,1735573846497,-500.0,0.00011232,2]
[347207347,1735573846507,-321.20013267,0.00011232,2]
[347207348,1735573846516,-500.0,0.00011232,2]
[347207349,1735573846527,-543.70831996,0.00011232,2]
[347207350,1735573846536,-500.0,0.00011232,2]
[347207351,1735573846546,-500.0,0.00011232,2]
[347207352,1735573846555,-495.52,0.00011232,2]
[347207354,1735573846566,-500.0,0.00011232,2]
[347207355,1735573846576,-527.06673634,0.00011273,2]
[347207356,1735573846585,-501.91477978,0.00011273,2]
[347207357,1735573846599,-500.0,0.00011273,2]
[347207358,1735573846609,-500.77898859,0.00011273,2]
[347207359,1735573846619,-500.0,0.00011273,2]
[347207360,1735573846629,-500.0,0.00011273,2]
[347207361,1735573846638,-281.36215528,0.00011273,2]
[347207362,1735573846648,-500.0,0.00011273,2]
[347207363,1735573846657,-468.26677004,0.00011273,2]
[347207364,1735573846666,-1397.39,0.00011293,2]
[347207365,1735573846675,-1397.39,0.00011293,2]
[347207366,1735573846684,-1397.39,0.00011293,2]
[347207367,1735573846693,-1397.39,0.00011293,2]
[347207368,1735573846703,-1397.39,0.00011293,2]
[347207369,1735573846712,-1397.49734625,0.00011293,2]
[347207370,1735573846721,-500.0,0.00011294,2]
[347207371,1735573846730,-500.0,0.00011294,2]
[347207372,1735573846739,-313.13781388,0.00011294,2]
[347207373,1735573846748,-500.0,0.00011294,2]
[347207374,1735573846822,-500.0,0.00011294,2]
[347207375,1735573846831,-500.0,0.00011294,2]
[347207376,1735573846841,-500.0,0.00011294,2]
[347207377,1735573846855,-2259.68,0.00011294,2]
[347207378,1735573846865,-625.88,0.00011294,2]
[347207379,1735573846875,-2284.63,0.00011295,2]
[347207380,1735573846885,-178.91167335,0.00011369,2]
[347207381,1735573846894,-347.80364614,0.00011506,2]
[347207382,1735573846904,-500.0,0.00011506,2]
[347207383,1735573846914,-500.0,0.00011506,2]
[347207384,1735573846923,-500.0,0.00011506,2]
[347207385,1735573846933,-500.68782716,0.00011506,2]
[347207386,1735573846942,-502.76397825,0.00011506,2]
[347207387,1735573846952,-515.86721176,0.00011506,2]
[347207388,1735573846961,-501.51294287,0.00011506,2]
[347207389,1735573846971,-506.65176935,0.00011506,2]
[347207390,1735573846981,-505.83412934,0.00011506,2]
[347207391,1735573846990,-503.59431192,0.00011506,2]
[347207392,1735573847000,-543.64323697,0.00011506,2]
[347207393,1735573847009,-500.0,0.00011506,2]
[347207394,1735573847020,-500.0,0.00011506,2]
[347207395,1735573847029,-500.0,0.00011506,2]
[347207396,1735573847040,-500.0,0.00011506,2]
[347207397,1735573847049,-500.0,0.00011506,2]
[347207398,1735573847059,-500.0,0.00011506,2]
[347207399,1735573847069,-503.46576888,0.00011506,2]
[347207400,1735573847079,-539.43231961,0.00011506,2]
[347207401,1735573847088,-500.0,0.00011506,2]
[347207402,1735573847101,-500.0,0.00011506,2]
[347207403,1735573847110,-578.6,0.00011506,2]
[347207404,1735573847120,-500.0,0.00011506,2]
[347207405,1735573847131,-505.37461683,0.00011506,2]
[347207406,1735573847142,-500.0,0.00011506,2]
[347207407,1735573847152,-500.75633386,0.00011506,2]
[347207408,1735573847162,-614.50981221,0.00011506,2]
[347207409,1735573847173,-500.0,0.00011506,2]
[347207410,1735573847183,-500.0,0.00011506,2]
[347207411,1735573847194,-500.0,0.00011506,2]
[347207412,1735573847203,-503.74446666,0.00011506,2]
[347207413,1735573847213,-500.0,0.00011506,2]
[347207414,1735573847223,-500.0,0.00011506,2]
[347207415,1735573847233,-503.81796353,0.00011506,2]
[347207416,1735573847243,-500.0,0.00011506,2]
[347207417,1735573847252,-500.0,0.00011506,2]
[347207418,1735573847262,-502.08830781,0.00011506,2]
[347207419,1735573847271,-500.0,0.00011506,2]
[347207420,1735573847281,-507.76017269,0.00011506,2]
[347207421,1735573847290,-500.0,0.00011506,2]
[347207422,1735573847299,-500.0,0.00011506,2]
[347207423,1735573847308,-500.0,0.00011506,2]
[347207424,1735573847318,-491.95752243,0.00011506,2]
[347207425,1735573847328,-500.0,0.00011506,2]
[347207426,1735573847337,-500.0,0.00011506,2]
[347207427,1735573847350,-500.0,0.00011506,2]
[347207428,1735573847359,-500.0,0.00011506,2]
[347207429,1735573847371,-500.0,0.00011506,2]
[347207430,1735573847381,-520.10358866,0.00011506,2]
[347207431,1735573847390,-500.0,0.00011506,2]
[347207432,1735573847400,-500.0,0.00011506,2]
[347207433,1735573847409,-500.0,0.00011506,2]
[347207434,1735573847420,-585.36381292,0.00011506,2]
[347207435,1735573847429,-500.0,0.00011506,2]
[347207436,1735573847439,-203.39179511,0.00011506,2]
[347207437,1735573847450,-504.39487205,0.00011506,2]
[347207438,1735573847459,-500.0,0.00011506,2]
[347207439,1735573847469,-500.0,0.00011506,2]
[347207440,1735573847480,-500.000001,0.00011506,2]
[347207441,1735573847493,-500.0,0.00011506,2]
[347207442,1735573847503,-500.0,0.00011506,2]
[347207443,1735573847512,-500.0,0.00011506,2]
[347207444,1735573847522,-502.83661736,0.00011506,2]
[347207445,1735573847531,-500.0,0.00011506,2]
[347207446,1735573847541,-500.0,0.00011506,2]
[347207447,1735573847550,-500.0,0.00011506,2]
[347207448,1735573847559,-500.0,0.00011506,2]
[347207449,1735573847569,-500.0,0.00011506,2]
[347207450,1735573847579,-500.0,0.00011506,2]
[347207451,1735573847588,-500.0,0.00011506,2]
[347207452,1735573847600,-583.23115109,0.00011506,2]
[347207453,1735573847609,-503.44034283,0.00011506,2]
[347207454,1735573847618,-501.0933918,0.00011506,2]
[347207455,1735573847627,-502.76494433,0.00011506,2]
[347207456,1735573847636,-1256.99,0.00011506,2]
[347207457,1735573847645,-605.96,0.00011506,2]
[347207458,1735573847654,-8816.16,0.00011506,2]
[347207459,1735573847665,-500.0,0.00011506,2]
[347207460,1735573847674,-500.0,0.00011506,2]
[347207461,1735573847683,-500.0,0.00011506,2]
[347207462,1735573847693,-500.0,0.00011506,2]
[347207463,1735573847702,-500.0,0.00011506,2]
[347207464,1735573847711,-500.0,0.00011506,2]
[347207465,1735573847720,-500.0,0.00011506,2]
[347207466,1735573847729,-500.0,0.00011506,2]
[347207467,1735573847738,-500.0,0.00011506,2]
[347207468,1735573847747,-500.0,0.00011506,2]
[347207469,1735573847756,-500.0,0.00011506,2]
[347207470,1735573847766,-517.86211653,0.00011506,2]
[347207471,1735573847776,-500.0,0.00011506,2]
[347207472,1735573847785,-500.0,0.00011506,2]
[347207473,1735573847794,-500.0,0.00011506,2]
[347207474,1735573847804,-287.67076054,0.00011506,2]
[347207475,1735573847813,-500.0,0.00011506,2]
[347207476,1735573847822,-500.0,0.00011506,2]
[347207477,1735573847832,-500.0,0.00011506,2]
[347207478,1735573847841,-500.0,0.00011506,2]
[347207479,1735573847853,-501.66850296,0.00011506,2]
[347207480,1735573847862,-500.0,0.00011506,2]
[347207481,1735573847871,-1260.38,0.00011506,2]
[347207482,1735573847881,-500.0,0.00011506,2]
[347207483,1735573847890,-501.47646778,0.00011506,2]
[347207484,1735573847900,-501.57767643,0.00011506,2]
[347207485,1735573847909,-500.0,0.00011506,2]
[347207486,1735573847919,-500.0,0.00011506,2]
[347207487,1735573847928,-500.0,0.00011506,2]
[347207488,1735573847938,-500.0,0.00011506,2]
[347207489,1735573847947,-2882.64,0.00011506,2]
[347207490,1735573847956,-500.0,0.00011506,2]
[347207491,1735573847966,-500.0,0.00011506,2]
[347207492,1735573847975,-500.0,0.00011506,2]
[347207493,1735573847984,-254.99018142,0.00011506,2]
[347207494,1735573847994,-500.0,0.00011506,2]
[347207495,1735573848002,-510.75,0.00011506,2]
[347207496,1735573848012,-500.0,0.00011506,2]
[347207497,1735573848021,-504.46341365,0.00011506,2]
[347207498,1735573848030,-500.0,0.00011506,2]
[347207499,1735573848040,-500.0,0.00011506,2]
[347207500,1735573848049,-500.0,0.00011506,2]
[347207501,1735573848059,-429.0696,0.00011506,2]
[347207502,1735573848068,-500.0,0.00011506,2]
[347207503,1735573848078,-500.0,0.00011506,2]
[347207504,1735573848153,-500.0,0.00011506,2]
[347207505,1735573848163,-500.0,0.00011506,2]
[347207506,1735573848173,-500.0,0.00011506,2]
[347207507,1735573848183,-502.64986194,0.00011506,2]
[347207508,1735573848193,-640.47,0.00011506,2]
[347207509,1735573848203,-500.0,0.00011506,2]
[347207510,1735573848213,-500.0,0.00011506,2]
[347207511,1735573848222,-500.0,0.00011506,2]
[347207512,1735573848233,-500.0,0.00011506,2]
[347207513,1735573848243,-497.7819373,0.00011506,2]
[347207514,1735573848253,-500.0,0.00011506,2]
[347207515,1735573848263,-737.05,0.00011506,2]
[347207516,1735573848273,-187.46669107,0.00011506,2]
[347207517,1735573848284,-500.0,0.00011506,2]
[347207518,1735573848293,-500.0,0.00011506,2]
[347207519,1735573848302,-500.0,0.00011506,2]
[347207520,1735573848312,-232.48,0.00011506,2]
[347207521,1735573848322,-500.0,0.00011568,2]
[347207522,1735573848331,-500.0,0.00011568,2]
[347207523,1735573848341,-500.0,0.00011568,2]
[347207524,1735573848353,-2259.68,0.00011568,2]
[347207525,1735573848363,-625.88,0.00011568,2]
[347207526,1735573848373,-2284.63,0.00011569,2]
[347207527,1735573848383,-156.45390398,0.0001178,2]
[347207528,1735573848392,-501.9451101,0.0001178,2]
[347207529,1735573848402,-596.57262671,0.0001178,2]
[347207530,1735573848412,-363.30281205,0.0001178,2]
[347207531,1735573848422,-500.0,0.0001178,2]
[347207532,1735573848432,-399.59083543,0.0001178,2]
[347207533,1735573848442,-500.0,0.0001178,2]
[347207534,1735573848452,-609.45,0.0001178,2]
[347207535,1735573848462,-500.0,0.0001178,2]
[347207536,1735573848472,-500.0,0.0001178,2]
[347207537,1735573848483,-500.0,0.0001178,2]
[347207538,1735573848496,-500.0,0.0001178,2]
[347207539,1735573848506,-500.0,0.0001178,2]
[347207540,1735573848516,-500.0,0.0001178,2]
[347207541,1735573848526,-503.8741069,0.0001178,2]
[347207542,1735573848536,-500.0,0.0001178,2]
[347207543,1735573848546,-642.35252097,0.0001178,2]
[347207544,1735573848556,-500.0,0.0001178,2]
[347207545,1735573848566,-553.61694747,0.0001178,2]
[347207546,1735573848576,-500.0,0.0001178,2]
[347207547,1735573848587,-500.0,0.0001178,2]
[347207548,1735573848598,-500.0,0.0001178,2]
[347207549,1735573848609,-515.53711164,0.0001178,2]
[347207550,1735573848619,-218.43171788,0.0001178,2]
[347207551,1735573848629,-504.61169402,0.0001178,2]
[347207552,1735573848639,-511.27958057,0.0001178,2]
[347207553,1735573848650,-500.0,0.0001178,2]
[347207554,1735573848660,-500.0,0.0001178,2]
[347207555,1735573848670,-267.20946169,0.0001178,2]
[347207556,1735573848680,-500.0,0.0001178,2]
[347207557,1735573848690,-500.0,0.0001178,2]
[347207558,1735573848699,-500.0,0.0001178,2]
[347207559,1735573848709,-500.0,0.0001178,2]
[347207560,1735573848719,-500.0,0.0001178,2]
[347207561,1735573848728,-1256.99,0.0001178,2]
[347207562,1735573848738,-605.96,0.0001178,2]
[347207563,1735573848748,-8816.16,0.0001178,2]
[347207564,1735573848758,-500.0,0.0001178,2]
[347207565,1735573848769,-500.0,0.0001178,2]
[347207566,1735573848779,-304.77641913,0.0001178,2]
[347207567,1735573848789,-500.0,0.0001178,2]
[347207568,1735573848799,-504.66936235,0.0001178,2]
[347207569,1735573848809,-266.03646334,0.0001178,2]
[347207570,1735573848819,-500.0,0.0001178,2]
[347207571,1735573848828,-500.0,0.0001178,2]
[347207572,1735573848838,-500.0,0.0001178,2]
[347207573,1735573848849,-500.0,0.0001178,2]
[347207574,1735573848859,-500.0,0.0001178,2]
[347207575,1735573848869,-500.0,0.0001178,2]